[Event "56th Rubinstein Memorial D 2020"]
[Site "Polanica Zdroj"]
[Date "2020.08.17"]
[Round "3.17"]
[White "Kaczanowski, Pawel"]
[Black "Bednarczyk, Mateusz"]
[Result "1-0"]
[ECO "B45"]
[WhiteElo "1655"]
[BlackElo "1500"]
[Annotator "NA RC"]
[PlyCount "72"]
[EventDate "2020.08.15"]
[EventType "swiss"]
[EventCountry "POL"]
[SourceTitle "playchess.com"]
[Source "ChessBase"]
[SourceQuality "1"]
[TimeControl "40/5400+30:1800+30"]

1. e4 {[%emt 0:00:00]} c5 {[%emt 0:00:00]} 2. Nf3 {[%emt 0:00:00]} Nc6 {[%emt 0:00:00]} 3. d4 {[%emt 0:00:00]} cxd4 {[%emt 0:00:00]} 4. Nxd4 {[%emt 0:00:00]} Nf6 {[%emt 0:00:00]} 5. Nc3 {[%emt 0:00:00]} e6 {[%emt 0:00:00]} 6. Ndb5 {[%emt 0:02:37]} Bb4 {[%emt 0:00:21]} 7. Nd6+ {[%emt 0:05:07]} Ke7 {[%emt 0:00:04]} 8. Bf4 {[%emt 0:06:49]} e5 {[%emt 0:01:15]} 9. Nf5+ {[%emt 0:01:34]} Kf8 {[%emt 0:00:24]} 10. Bg5 {[%emt 0:05:05]} h6 {[%emt 0:01:39]} 11. Bxf6 {[%emt 0:01:10]} Qxf6 {[%emt 0:00:03]} 12. Bb5 {[%emt 0:26:49]} Nd4 {[%emt 0:02:12]} 13. Nxd4 {[%emt 0:00:06]} exd4 {[%emt 0:00:04]} 14. a3 {[%emt 0:00:04]} dxc3 {[%emt 0:00:04]} 15. axb4 {[%emt 0:00:06]} cxb2 {[%emt 0:00:06]} 16. Rb1 {[%emt 0:00:25]} Qe5 {[%emt 0:06:09]} 17. Qe2 {[%emt 0:03:12]} a6 {[%emt 0:03:10]} 18. Bd3 {[%emt 0:00:40]} d6 {[%emt 0:04:19]} 19. O-O {[%emt 0:01:44]} Qc3 {[%emt 0:08:09]} 20. Qe1 {[%emt 0:03:20]} Qd4 {[%emt 0:01:35]} 21. Qd2 {[%emt 0:02:15]} Be6 {[%emt 0:00:37]} 22. c3 {[%emt 0:01:22]} Qf6 {[%emt 0:00:26]} 23. Rxb2 {[%emt 0:03:07]} Rc8 {[%emt 0:00:09]} 24. Rc2 {[%emt 0:00:29]} Bb3 {[%emt 0:00:31]} 25. Rcc1 {[%emt 0:00:11]} b5 {[%emt 0:01:09]} 26. Ra1 {[%emt 0:13:11]} Qxc3 {[%emt 0:00:16]} 27. Qxc3 {[%emt 0:00:09]} Rxc3 {[%emt 0:00:18]} 28. Bxb5 {[%emt 0:00:23]} Bc4 {[%emt 0:00:30]} 29. Bxc4 {[%emt 0:00:18]} Rxc4 {[%emt 0:00:04]} 30. b5 {[%emt 0:01:00]} Ke7 {[%emt 0:00:14]} 31. bxa6 {[%emt 0:00:05]} Rxe4 {[%emt 0:00:33]} 32. a7 {[%emt 0:01:30]} Ra8 {[%emt 0:00:10]} 33. Rfb1 {[%emt 0:00:29]} Rc4 {[%emt 0:00:28]} 34. Rb8 {[%emt 0:00:34]} Rxa7 {[%emt 0:05:55]} 35. Rxa7+ {[%emt 0:00:06]} Ke6 {[%emt 0:00:03]} 36. Ra1 Rc8 1-0

[Event "56th Rubinstein Memorial D 2020"]
[Site "Polanica Zdroj"]
[Date "2020.08.17"]
[Round "3.18"]
[White "Stachowiak, Bruno"]
[Black "Wilgosz, Jan"]
[Result "0-1"]
[ECO "C50"]
[WhiteElo "1369"]
[BlackElo "1617"]
[Annotator "NA RC"]
[PlyCount "86"]
[EventDate "2020.08.15"]
[EventType "swiss"]
[EventCountry "POL"]
[SourceTitle "playchess.com"]
[Source "ChessBase"]
[SourceQuality "1"]
[TimeControl "40/5400+30:1800+30"]

1. e4 {[%emt 0:00:00]} e5 {[%emt 0:00:00]} 2. Nf3 {[%emt 0:00:15]} Nc6 {[%emt 0:00:01]} 3. Bc4 {[%emt 0:00:07]} Nf6 {[%emt 0:00:21]} 4. d3 {[%emt 0:00:17]} Bc5 {[%emt 0:00:23]} 5. Nc3 {[%emt 0:01:22]} d6 {[%emt 0:04:11]} 6. h3 {[%emt 0:01:17]} h6 {[%emt 0:04:03]} 7. Be3 {[%emt 0:00:22]} Bb6 {[%emt 0:02:48]} 8. Qd2 {[%emt 0:00:16]} Ba5 {[%emt 0:13:05]} 9. Qe2 {[%emt 0:05:16]} Qe7 {[%emt 0:10:59]} 10. O-O {[%emt 0:00:30]} g5 {[%emt 0:12:44]} 11. a3 {[%emt 0:06:28]} Bxc3 {[%emt 0:07:52]} 12. bxc3 {[%emt 0:00:34]} g4 {[%emt 0:01:24]} 13. hxg4 {[%emt 0:00:41]} Nxg4 {[%emt 0:01:26]} 14. d4 {[%emt 0:05:24]} Rg8 {[%emt 0:04:44]} 15. Bb5 {[%emt 0:08:40]} Bd7 {[%emt 0:06:57]} 16. Bxc6 {[%emt 0:09:09]} Bxc6 {[%emt 0:03:31]} 17. d5 {[%emt 0:01:28]} Bd7 {[%emt 0:00:44]} 18. Rab1 {[%emt 0:01:00]} Bc8 {[%emt 0:03:09]} 19. Qb5+ {[%emt 0:00:51]} Kf8 {[%emt 0:01:31]} 20. c4 {[%emt 0:03:11]} h5 {[%emt 0:03:42]} 21. Qb3 {[%emt 0:07:24]} h4 {[%emt 0:01:12]} 22. Bg5 {[%emt 0:05:12]} Rxg5 {[%emt 0:01:38]} 23. Nxg5 {[%emt 0:00:23]} Qxg5 {[%emt 0:00:11]} 24. Rbe1 {[%emt 0:04:45]} Qf4 {[%emt 0:03:27]} 25. g3 {[%emt 0:00:32]} hxg3 {[%emt 0:02:21]} 26. Qxg3 {[%emt 0:00:48]} Qxg3+ {[%emt 0:04:18]} 27. fxg3 {[%emt 0:00:43]} b6 {[%emt 0:00:59]} 28. Rf3 {[%emt 0:03:18]} Kg7 {[%emt 0:01:24]} 29. Ref1 {[%emt 0:01:05]} f6 {[%emt 0:00:14]} 30. Kg2 {[%emt 0:01:25]} Ba6 {[%emt 0:01:40]} 31. Rh1 {[%emt 0:06:24]} Bxc4 {[%emt 0:02:31]} 32. Rc3 {[%emt 0:00:38]} b5 {[%emt 0:00:58]} 33. Rh4 {[%emt 0:01:03]} Nh6 {[%emt 0:00:23]} 34. a4 {[%emt 0:01:10]} a6 {[%emt 0:00:12]} 35. g4 {[%emt 0:00:51]} Nf7 {[%emt 0:00:25]} 36. Rhh3 {[%emt 0:03:53]} Ng5 {[%emt 0:00:22]} 37. Rhe3 {[%emt 0:00:33]} Rh8 {[%emt 0:00:18]} 38. axb5 {[%emt 0:00:33]} axb5 {[%emt 0:00:09]} 39. Ra3 {[%emt 0:01:03]} Nxe4 {[%emt 0:01:25]} 40. Rxe4 {[%emt 0:00:54]} Bxd5 {[%emt 0:00:03]} 41. Rae3 {[%emt 0:30:22]} Bxe4+ {[%emt 0:30:16]} 42. Rxe4 {[%emt 0:00:15]} d5 {[%emt 0:00:39]} 43. Rb4 {[%emt 0:00:08]} Rb8 {[%emt 0:00:14]} 0-1

[Event "56th Rubinstein Memorial D 2020"]
[Site "Polanica Zdroj"]
[Date "2020.08.17"]
[Round "3.19"]
[White "Biel, Maciej"]
[Black "Zarzecki, Dymitr Stanislaw"]
[Result "*"]
[WhiteElo "1275"]
[BlackElo "1596"]
[Annotator "NA RC"]
[PlyCount "104"]
[EventDate "2020.08.15"]
[EventType "swiss"]
[EventCountry "POL"]
[SourceTitle "playchess.com"]
[Source "ChessBase"]
[SourceQuality "1"]
[TimeControl "40/5400+30:1800+30"]

1. e4 {[%emt 0:00:00]} c5 {[%emt 0:00:15]} 2. d3 {[%emt 0:00:00]} Nc6 {[%emt 0:01:20]} 3. Nf3 {[%emt 0:00:00]} d6 {[%emt 0:02:28]} 4. g3 {[%emt 0:00:00]} g6 {[%emt 0:01:45]} 5. Bg2 {[%emt 0:00:02]} Bg7 {[%emt 0:00:10]} 6. O-O {[%emt 0:00:06]} Nf6 {[%emt 0:02:03]} 7. c3 {[%emt 0:00:49]} O-O {[%emt 0:01:40]} 8. Re1 {[%emt 0:02:46]} Nh5 {[%emt 0:10:47]} 9. Na3 {[%emt 0:08:03]} e5 {[%emt 0:07:04]} 10. Nc4 {[%emt 0:01:53]} b5 {[%emt 0:03:50]} 11. Ne3 {[%emt 0:02:08]} Rb8 {[%emt 0:01:22]} 12. Nh4 {[%emt 0:05:48]} Be6 {[%emt 0:05:55]} 13. Ng4 {[%emt 0:07:26]} Nf4 {[%emt 0:16:15]} 14. Qf3 {[%emt 0:09:40]} Bxg4 {[%emt 0:05:28]} 15. Qxg4 {[%emt 0:00:37]} Nxd3 {[%emt 0:01:05]} 16. Rf1 {[%emt 0:02:55]} Nxc1 {[%emt 0:08:32]} 17. Raxc1 {[%emt 0:00:13]} b4 {[%emt 0:00:59]} 18. f4 {[%emt 0:03:22]} bxc3 {[%emt 0:08:14]} 19. bxc3 {[%emt 0:00:19]} Rb2 {[%emt 0:03:41]} 20. f5 {[%emt 0:00:15]} Qd7 {[%emt 0:03:02]} 21. Nf3 {[%emt 0:04:44]} Rxa2 {[%emt 0:04:50]} 22. Qh4 {[%emt 0:00:37]} Qe7 {[%emt 0:07:00]} 23. Qg4 {[%emt 0:02:52]} a5 {[%emt 0:01:58]} 24. h4 {[%emt 0:01:07]} h5 {[%emt 0:01:13]} 25. Qh3 {[%emt 0:00:03]} Bh6 {[%emt 0:00:38]} 26. Rcd1 {[%emt 0:00:41]} Rb8 {[%emt 0:00:37]} 27. fxg6 {[%emt 0:02:13]} fxg6 {[%emt 0:00:38]} 28. Rb1 {[%emt 0:03:16]} Rab2 {[%emt 0:00:38]} 29. Rxb2 {[%emt 0:00:12]} Rxb2 {[%emt 0:00:13]} 30. Qc8+ {[%emt 0:00:58]} Nd8 {[%emt 0:00:27]} 31. Rd1 {[%emt 0:03:08]} Kg7 {[%emt 0:00:42]} 32. Nxe5 {[%emt 0:00:58]} Nf7 {[%emt 0:00:38]} 33. Nc6 {[%emt 0:03:04]} Qf6 {[%emt 0:00:30]} 34. Rf1 {[%emt 0:00:19]} Be3+ {[%emt 0:00:26]} 35. Kh1 {[%emt 0:00:25]} Rf2 {[%emt 0:00:23]} 36. Rb1 {[%emt 0:01:33]} Qxc3 {[%emt 0:00:40]} 37. Ne7 {[%emt 0:00:38]} Qc2 {[%emt 0:00:32]} 38. Qg8+ {[%emt 0:01:54]} Kf6 {[%emt 0:00:29]} 39. Nd5+ {[%emt 0:00:03]} Ke5 {[%emt 0:00:16]} 40. Qg7+ {[%emt 0:00:22]} Ke6 {[%emt 0:00:39]} 41. Bh3+ {[%emt 0:30:02]} Rf5 {[%emt 0:30:24]} 42. Qxg6+ {[%emt 0:00:55]} Ke5 {[%emt 0:00:39]} 43. Qxf5+ {[%emt 0:00:02]} Kd4 {[%emt 0:00:22]} 44. Qf1 {[%emt 0:01:21]} Ne5 {[%emt 0:00:40]} 45. Rd1+ {[%emt 0:00:21]} Nd3 {[%emt 0:00:31]} 46. Qxd3+ {[%emt 0:00:19]} Qxd3 {[%emt 0:00:13]} 47. Rxd3+ {[%emt 0:00:16]} Kxd3 {[%emt 0:00:02]} 48. Nf6 {[%emt 0:00:52]} a4 {[%emt 0:01:06]} 49. Be6 {[%emt 0:00:04]} c4 {[%emt 0:00:28]} 50. Nxh5 {[%emt 0:00:57]} a3 {[%emt 0:00:13]} 51. Nf4+ {[%emt 0:00:16]} Bxf4 {[%emt 0:00:38]} 52. gxf4 {[%emt 0:00:02]} a2 {[%emt 0:00:07]} *

[Event "56th Rubinstein Memorial D 2020"]
[Site "Polanica Zdroj"]
[Date "2020.08.17"]
[Round "3.20"]
[White "Pietrzak, Wojciech"]
[Black "Bialik, Nikodem"]
[Result "0-1"]
[ECO "A34"]
[WhiteElo "1773"]
[BlackElo "1552"]
[Annotator "NA RC"]
[PlyCount "60"]
[EventDate "2020.08.15"]
[EventType "swiss"]
[EventCountry "POL"]
[SourceTitle "playchess.com"]
[Source "ChessBase"]
[SourceQuality "1"]
[TimeControl "40/5400+30:1800+30"]

1. c4 {[%emt 0:00:00]} c5 {[%emt 0:05:18]} 2. Nc3 {[%emt 0:00:00]} e6 {[%emt 0:00:16]} 3. Nf3 {[%emt 0:00:00]} Nf6 {[%emt 0:00:51]} 4. e4 {[%emt 0:00:31]} d5 {[%emt 0:00:54]} 5. cxd5 {[%emt 0:04:13]} exd5 {[%emt 0:00:52]} 6. d3 {[%emt 0:03:20]} dxe4 {[%emt 0:03:34]} 7. Nxe4 {[%emt 0:02:48]} Be7 {[%emt 0:01:31]} 8. Be2 {[%emt 0:04:29]} O-O {[%emt 0:01:46]} 9. b3 {[%emt 0:01:43]} Nc6 {[%emt 0:03:46]} 10. O-O {[%emt 0:02:17]} b6 {[%emt 0:04:53]} 11. Bb2 {[%emt 0:02:25]} Bb7 {[%emt 0:02:45]} 12. h3 {[%emt 0:03:28]} Nb4 {[%emt 0:03:10]} 13. Re1 {[%emt 0:06:33]} Nxe4 {[%emt 0:06:38]} 14. dxe4 {[%emt 0:01:07]} Bxe4 {[%emt 0:02:52]} 15. Qxd8 {[%emt 0:07:34]} Bxd8 {[%emt 0:01:28]} 16. Red1 {[%emt 0:01:58]} h6 {[%emt 0:09:30]} 17. Ne5 {[%emt 0:05:46]} Bf6 {[%emt 0:05:57]} 18. f3 {[%emt 0:05:09]} Bf5 {[%emt 0:01:37]} 19. g4 {[%emt 0:02:30]} Bxe5 {[%emt 0:03:29]} 20. Bxe5 {[%emt 0:01:42]} Rfe8 {[%emt 0:00:33]} 21. f4 {[%emt 0:02:11]} f6 {[%emt 0:02:43]} 22. gxf5 {[%emt 0:03:21]} fxe5 {[%emt 0:00:34]} 23. Bc4+ {[%emt 0:00:37]} Kh8 {[%emt 0:01:19]} 24. Be6 {[%emt 0:01:25]} exf4 {[%emt 0:01:14]} 25. Rd2 {[%emt 0:02:05]} Rad8 {[%emt 0:01:10]} 26. Bd7 {[%emt 0:01:52]} Re3 {[%emt 0:01:53]} 27. Rad1 {[%emt 0:01:05]} Rxh3 {[%emt 0:02:36]} 28. Kg2 {[%emt 0:07:01]} Re3 {[%emt 0:01:27]} 29. Be6 {[%emt 0:00:55]} Red3 {[%emt 0:01:51]} 30. Bc4 {[%emt 0:00:24]} Rxd2+ {[%emt 0:00:08]} 0-1

[Event "56th Rubinstein Memorial D 2020"]
[Site "Polanica Zdroj"]
[Date "2020.08.18"]
[Round "4.1"]
[White "Bienkowski, Zbigniew"]
[Black "Simon, Marek"]
[Result "0-1"]
[ECO "B18"]
[WhiteElo "1739"]
[BlackElo "1878"]
[Annotator "NA RC"]
[PlyCount "118"]
[EventDate "2020.08.15"]
[EventType "swiss"]
[EventCountry "POL"]
[SourceTitle "playchess.com"]
[Source "ChessBase"]
[SourceQuality "1"]
[TimeControl "40/5400+30:1800+30"]

1. e4 {[%emt 0:00:00]} c6 {[%emt 0:00:00]} 2. Nc3 {[%emt 0:00:38]} d5 {[%emt 0:00:00]} 3. d4 {[%emt 0:04:35]} dxe4 {[%emt 0:00:00]} 4. Nxe4 {[%emt 0:00:49]} Bf5 {[%emt 0:00:06]} 5. Ng3 {[%emt 0:00:07]} Bg6 {[%emt 0:00:03]} 6. Nh3 {[%emt 0:00:32]} Nd7 {[%emt 0:01:45]} 7. Nf4 {[%emt 0:00:42] 7.Bc4 is more advanced technology. B18: Classical Caro-Kann: 4...Bf5 sidelines.} e5 {[%emt 0:00:20]} 8. Nxg6 {[%emt 0:00:49]} hxg6 {[%emt 0:00:03]} 9. dxe5 {[%emt 0:26:45]} Qa5+ {[%emt 0:00:16]} 10. Bd2 {[%emt 0:00:16]} Qxe5+ {[%emt 0:00:10]} 11. Qe2 {[%emt 0:00:23]} Qxe2+ {[%emt 0:03:20]} 12. Bxe2 {[%emt 0:00:10]} Ngf6 {[%emt 0:00:21]} 13. O-O-O {[%emt 0:00:36]} Bc5 {[%emt 0:07:04] [#]} 14. Be1 $146 {[%emt 0:06:10]} ({Predecessor:} 14. f4 O-O 15. Bf3 Rfe8 16. Rhe1 Bf2 17. Rf1 Be3 18. Bxe3 Rxe3 19. Rfe1 Rxe1 20. Rxe1 {0-1 (36) Lugovskoy,M (2428)-Esipenko,A (2609) Sochi 2018}) 14... O-O-O {[%emt 0:09:58]} 15. b4 {[%emt 0:04:51]} Bb6 {[%emt 0:03:00]} 16. a4 {[%emt 0:03:26]} Ne5 {[%emt 0:03:28]} 17. Rxd8+ {[%emt 0:02:44]} Rxd8 {[%emt 0:01:45]} 18. a5 {[%emt 0:00:45]} Bc7 {[%emt 0:00:30]} 19. Bd2 {[%emt 0:01:09]} Neg4 {[%emt 0:08:52]} 20. Bg5 {[%emt 0:06:16]} Nxf2 {[%emt 0:04:20]} 21. Rf1 {[%emt 0:03:28]} Bxg3 {[%emt 0:00:38]} 22. hxg3 {[%emt 0:00:05]} N2e4 {[%emt 0:00:25]} 23. Bf4 {[%emt 0:02:48]} Nd5 {[%emt 0:05:38]} 24. Bg4+ {[%emt 0:12:24]} f5 {[%emt 0:00:33]} 25. Bh3 {[%emt 0:00:32]} Ndf6 {[%emt 0:08:11]} 26. Be5 {[%emt 0:06:53]} Re8 {[%emt 0:04:58]} 27. Bd4 $2 {[%emt 0:00:26]} (27. Bf4) 27... Nxg3 {[%emt 0:00:27]} 28. Rd1 {[%emt 0:01:00]} Ne2+ {[%emt 0:00:51]} 29. Kb2 {[%emt 0:00:09]} Nxd4 {[%emt 0:01:54]} 30. Rxd4 {[%emt 0:00:04]} Re4 {[%emt 0:00:14]} 31. Rd3 {[%emt 0:00:49]} Rxb4+ {[%emt 0:01:05]} 32. Ka3 {[%emt 0:00:07]} Re4 {[%emt 0:01:46]} 33. Rg3 {[%emt 0:02:11]} Ng4 {[%emt 0:00:42]} 34. Kb3 {[%emt 0:00:08]} Kd7 {[%emt 0:02:12]} 35. Rd3+ {[%emt 0:00:27]} Ke7 $19 {[%emt 0:00:18]} 36. Kb2 {[%emt 0:00:59]} Ne5 {[%emt 0:01:45]} 37. Rg3 {[%emt 0:01:13]} Kf6 {[%emt 0:00:20]} 38. a6 {[%emt 0:00:14]} bxa6 {[%emt 0:00:52]} 39. Rb3 {[%emt 0:00:36]} a5 {[%emt 0:01:00]} 40. c3 {[%emt 0:00:48]} Re3 {[%emt 0:03:26]} 41. Rb8 {[%emt 0:31:04]} Rg3 {[%emt 0:30:09]} 42. Rf8+ {[%emt 0:01:20]} Kg5 {[%emt 0:00:41]} 43. Rg8 {[%emt 0:01:06]} Kf4 {[%emt 0:00:14]} 44. Rd8 {[%emt 0:01:02]} c5 {[%emt 0:00:58]} 45. Rf8 {[%emt 0:00:23]} a4 {[%emt 0:00:24]} 46. Ka3 {[%emt 0:00:52]} Rxc3+ {[%emt 0:00:15]} 47. Kxa4 {[%emt 0:00:03]} Rg3 {[%emt 0:00:18]} 48. Kb5 {[%emt 0:00:21]} c4 {[%emt 0:00:33]} 49. Kb4 {[%emt 0:00:11]} Rb3+ {[%emt 0:00:16]} 50. Ka4 {[%emt 0:00:14]} Rg3 {[%emt 0:00:14]} 51. Kb4 {[%emt 0:00:25]} a5+ {[%emt 0:00:18]} 52. Ka4 {[%emt 0:00:04]} Ng4 {[%emt 0:01:20]} 53. Rg8 {[%emt 0:01:34]} Ne3 {[%emt 0:00:25]} 54. Rxg7 {[%emt 0:00:20]} g5 {[%emt 0:00:22]} 55. Kxa5 {[%emt 0:00:37]} g4 {[%emt 0:00:18]} 56. Rh7 {[%emt 0:00:06]} c3 {[%emt 0:00:23]} 57. Rc7 {[%emt 0:02:04]} c2 {[%emt 0:00:16]} 58. Ka4 {[%emt 0:00:14]} gxh3 {[%emt 0:00:09]} 59. gxh3 {[%emt 0:00:01]} Rg1 0-1

[Event "56th Rubinstein Memorial D 2020"]
[Site "Polanica Zdroj"]
[Date "2020.08.18"]
[Round "4.2"]
[White "Gromczak, Dariusz"]
[Black "Ursnik, Patryk"]
[Result "1-0"]
[ECO "B24"]
[WhiteElo "1785"]
[BlackElo "1601"]
[Annotator "NA RC"]
[PlyCount "29"]
[EventDate "2020.08.15"]
[EventType "swiss"]
[EventCountry "POL"]
[SourceTitle "playchess.com"]
[Source "ChessBase"]
[SourceQuality "1"]
[TimeControl "40/5400+30:1800+30"]

1. e4 {[%emt 0:00:00]} c5 {[%emt 0:02:06]} 2. Nc3 {[%emt 0:00:00]} Nc6 {[%emt 0:01:21]} 3. Nf3 {[%emt 0:00:19]} Nf6 {[%emt 0:05:02]} 4. Bb5 {[%emt 0:00:46]} a6 {[%emt 0:03:20]} 5. Bxc6 {[%emt 0:00:46]} dxc6 {[%emt 0:00:03]} 6. h3 {[%emt 0:02:46]} g6 {[%emt 0:00:35]} 7. d3 {[%emt 0:00:18]} Bg7 {[%emt 0:00:21]} 8. Be3 {[%emt 0:02:23]} Qa5 {[%emt 0:04:43]} 9. O-O {[%emt 0:01:08]} O-O {[%emt 0:04:28]} 10. Nd2 {[%emt 0:04:01]} Nd7 {[%emt 0:02:29]} 11. Nb3 {[%emt 0:01:03]} Qb6 {[%emt 0:01:03]} 12. Na4 {[%emt 0:06:47]} Qb5 {[%emt 0:00:17]} 13. Naxc5 {[%emt 0:03:05]} Nxc5 {[%emt 0:00:26]} 14. Bxc5 {[%emt 0:01:07]} Bxb2 {[%emt 0:00:43]} 15. a4 {[%emt 0:00:59]} 1-0

[Event "56th Rubinstein Memorial D 2020"]
[Site "Polanica Zdroj"]
[Date "2020.08.18"]
[Round "4.4"]
[White "Szczygiel, Konrad"]
[Black "Wawrzyniak, Pawel"]
[Result "1-0"]
[ECO "D47"]
[WhiteElo "1901"]
[BlackElo "1824"]
[Annotator "RC"]
[PlyCount "79"]
[EventDate "2020.08.15"]
[EventType "swiss"]
[EventCountry "POL"]
[SourceTitle "playchess.com"]
[Source "ChessBase"]
[SourceQuality "1"]
[TimeControl "40/5400+30:1800+30"]

1. d4 {[%emt 0:00:00]} d5 {[%emt 0:00:00]} 2. c4 {[%emt 0:00:00]} e6 {[%emt 0:00:00]} 3. Nc3 {[%emt 0:00:00]} Nf6 {[%emt 0:00:00]} 4. Nf3 {[%emt 0:00:02]} c6 {[%emt 0:00:41]} 5. e3 {[%emt 0:01:21]} Nbd7 {[%emt 0:00:11]} 6. Bd3 {[%emt 0:00:41]} dxc4 {[%emt 0:00:48]} 7. Bxc4 {[%emt 0:00:06]} b5 {[%emt 0:00:07]} 8. Bd3 {[%emt 0:00:13]} Bb7 {[%emt 0:00:36]} 9. e4 {[%emt 0:04:56]} b4 {[%emt 0:00:50]} 10. e5 {[%emt 0:00:22]} bxc3 {[%emt 0:04:57]} 11. exf6 {[%emt 0:00:34]} cxb2 {[%emt 0:00:11]} 12. fxg7 bxa1=Q {[%emt 0:07:59]} 13. gxh8=Q {[%emt 0:01:10]} Qa5+ {[%emt 0:05:31]} 14. Bd2 {[%emt 0:04:51]} Qxd1+ {[%emt 0:01:04]} 15. Kxd1 {[%emt 0:00:02]} Qa4+ {[%emt 0:01:05]} 16. Ke2 {[%emt 0:02:33]} Ba6 {[%emt 0:30:03]} 17. Rc1 {[%emt 0:26:56]} Bxd3+ {[%emt 0:06:03]} 18. Kxd3 {[%emt 0:00:08]} Qb5+ {[%emt 0:02:22]} 19. Ke3 {[%emt 0:01:03]} O-O-O {[%emt 0:07:26]} 20. Qxh7 {[%emt 0:00:29]} f5 {[%emt 0:05:33]} 21. Qg6 {[%emt 0:10:40]} Qd5 {[%emt 0:22:03]} 22. Ke2 {[%emt 0:01:43]} Ba3 {[%emt 0:00:35]} 23. Rc3 {[%emt 0:07:51]} Bb4 {[%emt 0:00:56]} 24. Rc1 {[%emt 0:01:03]} Ba3 {[%emt 0:00:46]} 25. Rc3 {[%emt 0:00:32]} Bb4 {[%emt 0:00:05]} 26. Rc2 {[%emt 0:06:58]} Qe4+ {[%emt 0:00:58]} 27. Kd1 {[%emt 0:00:06]} Bd6 {[%emt 0:01:13]} 28. Ng5 {[%emt 0:04:11]} Qg4+ {[%emt 0:00:57]} 29. f3 {[%emt 0:00:16]} Qxg2 {[%emt 0:00:06]} 30. Rxc6+ {[%emt 0:00:28]} Kb7 {[%emt 0:00:15]} 31. Rc3 {[%emt 0:06:38]} Nf8 {[%emt 0:01:24]} 32. Qf7+ {[%emt 0:00:29]} Rd7 {[%emt 0:00:14]} 33. Qe8 {[%emt 0:00:13]} Rc7 {[%emt 0:00:45]} 34. Rxc7+ {[%emt 0:00:59]} Bxc7 {[%emt 0:00:38]} 35. Qxf8 {[%emt 0:04:24]} Qf1+ {[%emt 0:00:08]} 36. Kc2 {[%emt 0:01:43]} Qc4+ {[%emt 0:00:09]} 37. Kb2 {[%emt 0:00:44]} a5 {[%emt 0:00:25]} 38. Qc5 {[%emt 0:02:31]} Qe2 {[%emt 0:01:14]} 39. Qc2 {[%emt 0:00:54]} Bxh2 {[%emt 0:00:23]} 40. Bxa5 {[%emt 0:00:23]} 1-0

[Event "56th Rubinstein Memorial D 2020"]
[Site "Polanica Zdroj"]
[Date "2020.08.18"]
[Round "4.5"]
[White "Sypien, Natan"]
[Black "Janicki, Rafal"]
[Result "1/2-1/2"]
[ECO "D15"]
[WhiteElo "1794"]
[BlackElo "1851"]
[Annotator "NA RC"]
[PlyCount "73"]
[EventDate "2020.08.15"]
[EventType "swiss"]
[EventCountry "POL"]
[SourceTitle "playchess.com"]
[Source "ChessBase"]
[SourceQuality "1"]
[TimeControl "40/5400+30:1800+30"]

{[%evp 8,54,24,29,32,19,32,41,64,-17,59,32767,0,-8,7,32767,-31,32767,-57,-63,32767,-63,-37,-36,-29,-48,-4,-4,-13,-16,-8,32767,32767,32767,32767,32767,32767,32767,32767,32767,32767,77,47,48,162,50,25,37,32]} 1. d4 {[%emt 0:00:00]} d5 {[%emt 0:00:00]} 2. c4 {[%emt 0:00:00]} c6 {[%emt 0:00:00]} 3. Nf3 {[%emt 0:00:00]} Nf6 {[%emt 0:00:00]} 4. Nc3 {[%emt 0:00:00]} a6 {[%emt 0:00:00]} 5. e3 {[%emt 0:07:30]} Nbd7 {[%emt 0:01:51]} 6. Bd3 {[%emt 0:07:15]} e6 {[%emt 0:01:00]} 7. O-O {[%emt 0:00:19] is the legacy move (7.b3).} Be7 {[%emt 0:01:30] D46: Semi-Slav: 5 e3 Nbd7 6 Bd3, Black avoids the Meran.} 8. Qc2 {[%emt 0:04:46]} (8. e4 $14) 8... O-O {[%emt 0:03:05]} ({Better is} 8... dxc4 $11 9. Bxc4 b5) 9. Bd2 {[%emt 0:06:13] [#]} dxc4 $146 {[%emt 0:04:10]} ({Predecessor:} 9... b6 10. Rac1 Bb7 11. b3 dxc4 12. bxc4 c5 13. dxc5 Nxc5 14. Ne1 Nxd3 15. Qxd3 Qxd3 16. Nxd3 {½-½ (16) Finsel,M (1677)-Bokemaer,A (1334) Hanau 2010}) 10. Bxc4 {[%emt 0:00:02]} b5 {[%emt 0:01:09]} 11. Bd3 {[%emt 0:00:34]} c5 {[%emt 0:02:06]} 12. dxc5 {[%emt 0:01:35]} Nxc5 {[%emt 0:01:28]} 13. Be2 {[%emt 0:00:02]} Bb7 {[%emt 0:00:37]} 14. Rfd1 {[%emt 0:06:49]} Rc8 {[%emt 0:03:03]} 15. Be1 {[%emt 0:02:56]} Qb6 {[%emt 0:02:35]} 16. Rac1 {[%emt 0:01:16]} b4 {[%emt 0:20:33]} 17. Na4 {[%emt 0:01:16]} Qa5 {[%emt 0:00:58]} 18. Nxc5 {[%emt 0:01:10]} Rxc5 {[%emt 0:00:52]} 19. Qb1 {[%emt 0:02:07]} Be4 {[%emt 0:02:58]} 20. Rxc5 {[%emt 0:12:50]} Qxc5 {[%emt 0:02:30]} 21. Qc1 {[%emt 0:00:35]} Qb6 {[%emt 0:03:07]} 22. Ne5 {[%emt 0:07:53]} Qa5 {[%emt 0:13:01]} 23. Nd7 {[%emt 0:02:10]} Qg5 {[%emt 0:01:14]} 24. f3 {[%emt 0:04:37]} Nxd7 {[%emt 0:01:57]} 25. Rxd7 {[%emt 0:00:01]} ({But not} 25. fxe4 $6 Bc5 $15) 25... Bd5 {[%emt 0:06:21]} (25... Bc5 $14 26. Bf2 Ba8) 26. a3 {[%emt 0:04:55]} (26. h4 $18 Qf6 27. b3 (27. Bxa6 Bxa2 28. Qc7 Bd8 $16)) 26... a5 {[%emt 0:01:28]} 27. Bd2 $14 {[%emt 0:00:58]} Ba8 {[%emt 0:09:07]} 28. e4 {[%emt 0:09:28]} Qc5+ {[%emt 0:00:27]} 29. Qxc5 {[%emt 0:01:03]} Bxc5+ {[%emt 0:00:07]} 30. Kf1 {[%emt 0:00:02]} bxa3 {[%emt 0:01:58]} 31. bxa3 {[%emt 0:00:06]} Bxa3 {[%emt 0:00:13]} 32. Bxa5 {[%emt 0:00:30]} Bc5 {[%emt 0:01:05]} 33. Bb5 {[%emt 0:02:01]} h6 {[%emt 0:00:46]} 34. Ke2 {[%emt 0:00:35]} Rb8 {[%emt 0:00:46]} 35. Rd8+ {[%emt 0:00:28]} Rxd8 {[%emt 0:00:09]} 36. Bxd8 {[%emt 0:00:03]} Kf8 {[%emt 0:00:48]} 37. Kd3 {[%emt 0:03:30]} 1/2-1/2